Cogmind - Beta 15 @@@ ROGUE MODE // 2025.07.27 @ 17:26:24 Player: Nat Result: Destroyed by G-47 Trooper with Particle Gun Performance ------------- Evolutions (0) 0 Regions Visited (1) 200 Robots Destroyed (2) 10 Value Destroyed (78) 78 Prototype IDs (0) 0 Alien Tech Used (0) 0 Bonus (0) 0 TOTAL SCORE: 288 Bonus ------- None Cogmind --------- Core Integrity 0/250 Matter 286/300 Energy 100/100 System Corruption 0% Temperature Cool (24) Movement Core (50) Location -10/Materials Parts ------- > --- POWER (1) -------- (None) > --- PROPULSION (2) --- (None) > --- UTILITY (2) ------ Improved Heat Sink Visual Processing Unit > --- WEAPON (2) ------- (None) > --- INVENTORY (5) ---- (None) Peak State ------------ > --- POWER ------------ Light Nuclear Core > --- PROPULSION ------- (None) > --- UTILITY ---------- Improved Heat Sink Visual Processing Unit > --- WEAPON ----------- EM Pulse Gun Light Assault Rifle > --- INVENTORY -------- (None) [Rating: 10] Favorites ----------- Power Light Ion Engine Engine Light Ion Engine Power Core Light Nuclear Core Propulsion Aluminum Leg Treads Light Treads Leg Aluminum Leg Wheel Compact Wheel Utility Visual Processing Unit Device Improved Heat Sink Processor Visual Processing Unit Weapon Light Assault Rifle Energy Gun EM Pulse Gun Ballistic Gun Light Assault Rifle Special Melee Weapon Datajack Build | -11 -10 ------- Run | Yrd Mat Slots Evolved . | . . Power . | . . Propulsion . | . . Utility . | . . Weapon . | . . Parts Attached 12 | 5 7 Power 2 | 1 1 Engine 1 | 1 . Core 1 | . 1 Reactor . | . . Propulsion 4 | 2 2 Treads 1 | . 1 Leg 2 | 2 . Wheel 1 | . 1 Hover . | . . Flight . | . . Utility 2 | . 2 Device 1 | . 1 Storage . | . . Processor 1 | . 1 Hackware . | . . Protection . | . . Artifact . | . . Weapon 4 | 2 2 Energy Gun 1 | 1 . Energy Cannon . | . . Ballistic Gun 2 | 1 1 Ballistic Cannon . | . . Launcher . | . . Special Weapon . | . . Impact Weapon . | . . Slashing Weapon . | . . Piercing Weapon . | . . Special Melee Weapon 1 | . 1 Unidentified Prototypes . | . . Parts Lost 8 | . 8 Power 2 | . 2 Propulsion 2 | . 2 Utility . | . . Weapon 4 | . 4 Highest Loss Streak 4 | . 4 To Critical Strikes . | . . Average Backups . | . 1 Power . | . . Propulsion . | . . Utility . | . . Weapon . | . . Tool/Special . | . . Unused Backups . | . . Power . | . . Propulsion . | . . Utility . | . . Weapon . | . . Tool/Special . | . . Average Slot Usage (%) 49 | . 49 Engine 6 | . 6 Core 1 | . 1 Treads 3 | . 3 Leg 9 | . 9 Wheel 1 | . 1 Device 4 | . 4 Processor 4 | . 4 Energy Gun 3 | . 3 Ballistic Gun 12 | . 12 Special Melee Weapon 4 | . 4 Peak Build Rating 10 | 5 10 Average Rating 4 | 3 4 On Entrance 2 | . 5 Naked Turns . | . . Heaviest Build 7 | 6 7 Greatest Support 20 | 20 20 Greatest Overweight (x) 2 | . 2 Average Overweight (x) . | . . Largest Inventory Capacity 5 | 5 5 Average Capacity 5 | 5 5 Most Carried 4 | 2 4 Average Carried . | . 1 Final Capacity 5 | 5 5 Final Carried . | . . Class Distribution -------------------- 100% | Mutant Dominant Class ---------------- Mutant | -10/Materials Resources | -11 -10 ----------- Run | Yrd Mat Matter Collected 329 | 261 68 Remotely . | . . Salvage Created 92 | 50 42 Parts 3 | . 3 Haulers Intercepted . | . . Recyclers Shooed . | . . Parts Field Recycled . | . . Retrieved Matter . | . . Parts Self-Destructed . | . . Prevented . | . . Kills | -11 -10 ------- Run | Yrd Mat Combat Hostiles Destroyed 2 | 1 1 Guns 2 | 1 1 Classes Destroyed 1 | 1 . Grunt 2 | 1 1 Best Kill Streak 1 | 1 1 Combat Bots Only 1 | 1 1 Max Kills in Single Turn 1 | 1 1 Gunslinging . | . . Exploded . | . . Melee . | . . Uniques/NPCs Destroyed . | . . Combat | -11 -10 -------- Run | Yrd Mat Hostile Shots Fired 80 | 17 63 Missed 25 | 4 21 Hits 55 | 13 42 Projectile 55 | 13 42 Critical Strikes 1 | . 1 Damage Taken 854 | 141 713 Core 257 | 10 247 Absorbed by Shields . | . . Core Remaining (%) 96 | 96 . Volleys Fired 24 | 11 13 Largest 2 | 2 2 Hottest 60 | 60 60 Shots Fired 39 | 22 17 Gun 39 | 22 17 Cannon . | . . Launcher . | . . Special . | . . Kinetic 27 | 11 16 Thermal . | . . Explosive . | . . Electromagnetic 12 | 11 1 Robot Hit Streak 14 | 5 14 Robot Miss Streak 3 | 3 2 Penetration Max . | . . Secondary Targets . | . . Shots Hit Robots 29 | 14 15 Core Hits 11 | 3 8 Critical Kills . | . . Critical Parts Destroyed . | . . Critical Strikes . | . . Melee Attacks . | . . Impact . | . . Slashing . | . . Piercing . | . . Sneak Attacks . | . . Combat Hostiles . | . . Follow-up Attacks . | . . Damage Inflicted 347 | 212 135 Guns 280 | 169 111 Cannons . | . . Explosions 43 | 43 . Melee . | . . Ramming 24 | . 24 Kinetic 187 | 76 111 Thermal 43 | 43 . Explosive . | . . Electromagnetic 93 | 93 . Impact . | . . Slashing . | . . Piercing . | . . Highest Corruption . | . . Average Corruption . | . . Corruption Purged . | . . Corruption Blocked . | . . Overload Shots . | . . Overflow Damage . | . . Projectiles . | . . Explosions . | . . Melee . | . . Knockbacks . | . . Impact . | . . Kinetic . | . . Secondary . | . . Self-Inflicted Damage 10 | . 10 Shots . | . . Rammed 4 | . 4 Targets Rammed 4 | . 4 Kicked . | . . Crushed . | . . Highest Temperature 76 | 76 8 Average Temperature 35 | 41 6 Received Heat Transfer 432 | 78 354 Siege Activations . | . . Martial Activations . | . . Shielding Activations . | . . Robots Disrupted . | . . Combat Hostiles . | . . Robots Corrupted . | . . Combat Hostiles . | . . Parts Fried 1 | 1 . Impact Corruptions . | . . Robots Melted . | . . Combat Hostiles . | . . Parts Melted . | . . Heat Transferred 50 | 50 . Parts Sabotaged . | . . Parts Stolen . | . . Parts Stripped . | . . Power Chain Reactions 1 | 1 . Alert | -11 -10 ------- Run | Yrd Mat Maximum Alert Level . | . . Low Security (%) 100 | 100 100 Level 1 . | . . Level 2 . | . . Level 3 . | . . Level 4 . | . . Level 5 . | . . High Security . | . . Max Security . | . . Peak Influence 20 | 20 20 Initial 13 | . 13 Average 3 | 1 4 Influence Increases 85 | 20 65 Destroy 0b10 Robot/C 40 | 20 20 Disable Machine 15 | . 15 Lose Combat Pursuer 30 | . 30 Influence Decreases 85 | . 85 Entered New Map 7 | . 7 Time Decay 53 | . 53 Lost Part 25 | . 25 Squads Dispatched 2 | . 2 Investigation 1 | . 1 Extermination . | . . Reinforcement 1 | . 1 Assault . | . . Garrison . | . . Intercept . | . . Searches Triggered . | . . Construction Impeded . | . . Haulers Reinforced . | . . Active Scanning Responses . | . . Cargo Convoy Interrupts . | . . Stealth | -11 -10 --------- Run | Yrd Mat Distress Signals 1 | . 1 Communications Jammed . | . . Distress Signals . | . . Times Spotted 14 | 1 13 Peak Tracking Total 8 | 1 8 Tactical Retreats 1 | . 1 Traps | -11 -10 ------- Run | Yrd Mat Traps Triggered 2 | . 2 Indirectly . | . . Trap Hack Attempts . | . . Triggered . | . . Disarmed . | . . Reprogrammed . | . . Reused . | . . Traps Extracted . | . . Installed . | . . Triggered . | . . Machines | -11 -10 ---------- Run | Yrd Mat Machines Disabled 1 | . 1 Max in Single Turn 1 | . 1 Machines Repaired . | . . Machines Dismantled . | . . Machines Sabotaged . | . . Overloaded Fab Kills . | . . Hacking | -11 -10 --------- Run | Yrd Mat Machines Accessed 2 | . 2 Terminals 2 | . 2 Fabricators . | . . Repair Stations . | . . Recycling Units . | . . Scanalyzers . | . . Garrison Access . | . . Total Hacks 3 | . 3 Successful 2 | . 2 Failed 1 | . 1 Catastrophic . | . . Database Lockouts . | . . Manual . | . . Terminals 3 | . 3 Fabricators . | . . Repair Stations . | . . Recycling Units . | . . Scanalyzers . | . . Garrison Access . | . . Terminal Hacks 2 | . 2 Emergency Access Points 1 | . 1 Transport Status 1 | . 1 Fabricator Hacks . | . . Repair Station Hacks . | . . Recycling Unit Hacks . | . . Scanalyzer . | . . Garrison Access Hacks . | . . Unauthorized Hacks . | . . Terminals . | . . Fabricators . | . . Repair Stations . | . . Recycling Units . | . . Scanalyzers . | . . Garrison Access . | . . Data Cores Recovered . | . . Used . | . . Hacking Detections . | . . Full Trace Events . | . . Feedback Events . | . . Feedback Blocked . | . . Robot Schematics Acquired . | . . Robots Built . | . . Authchips . | . . Time . | . . Total Robot Build Rating . | . . Part Schematics Acquired . | . . Parts Built . | . . Authchips . | . . Time . | . . Total Part Build Rating . | . . Parts Repaired . | . . Time . | . . Parts Recycled . | . . Recycled Matter . | . . Retrieved Matter . | . . Retrieved Components . | . . Parts Scanalyzed . | . . Part Schematics Acquired . | . . Parts Damaged . | . . Bothacking | -11 -10 ------------ Run | Yrd Mat Used RIF Installer . | . . Robots Hacked . | . . Non-combat . | . . Combat . | . . Robot Hacks Applied . | . . Relay Couplers Released . | . . Fabnet Peak Effective % . | . . Robots Rewired . | . . Allies Hacked . | . . Hacks Repelled . | . . Allies | -11 -10 -------- Run | Yrd Mat Total Allies . | . . Largest Group . | . . Highest-Rated Group . | . . Highest-Rated Ally . | . . Total Orders . | . . Ally Attacks . | . . Total Damage . | . . Kills . | . . Allies Corrupted . | . . Allies Melted . | . . Intel | -11 -10 ------- Run | Yrd Mat Active Infowar (turns) 44 | . 44 Optics 44 | . 44 Robot Analysis Total . | . . Derelict Logs Recovered . | . . Drone Launches . | . . Drone Recoveries . | . . Exploration | -11 -10 ------------- Run | Yrd Mat Turns Passed 386 | 110 276 Spaces Moved 243 | 73 170 Core 79 | 25 54 Treads 33 | . 33 Legs 110 | 48 62 Wheels 21 | . 21 Hover . | . . Flight . | . . Fastest Speed 50 | 50 50 Average Speed 108 | 96 113 Slowest Speed 160 | 120 160 Overloaded Moves . | . . Propulsion Burnouts . | . . Robots Hopped . | . . Potential Cave-ins . | . . Cave-ins Triggered . | . . Exploration Rate (%) 18 | 6 31 Regions Visited 1 Branch Regions . Pre-discovered Areas . | . . Known Exits Taken . | . . Unknown Exits Taken 1 | 1 . Scrap Searched . | . . Spaces Dug . | . . Terrain Destroyed . | . . Melee . | . . Projectile . | . . AOE . | . . Terrain Rammed . | . . Walls Destroyed . | . . Machines Disabled . | . . Actions | -11 -10 --------- Run | Yrd Mat Total 333 | 93 240 Wait 31 | . 31 Move 242 | 72 170 Hop . | . . Pick Up 12 | 5 7 Fast Attach . | . . Attach 14 | 5 9 Detach 2 | . 2 Swap 2 | . 2 Drop 2 | . 2 Fire 24 | 11 13 Melee . | . . Ram 4 | . 4 Kick . | . . Crush . | . . Escape Stasis . | . . Rewire . | . . Trap . | . . Miscellaneous . | . . Route ------- -11/Scrapyard -10/Materials (discovered 1 exit: [*Mat]) History --------- Turn | Location | Event 2 | -11/Scrapyard | Met Revision 17 65 | -11/Scrapyard | Discovered new exit (range 8) 111 | -11/Scrapyard | Entered Materials 296 | -10/Materials | Lost 4 parts (1p1n2w) 327 | -10/Materials | Build established: Mutant 367 | -10/Materials | Discovered new exit (range 8) 377 | -10/Materials | Lost 3 parts (1p2w) 377 | -10/Materials | Core integrity fell below 50% 387 | -10/Materials | Core integrity fell below 20% 387 | -10/Materials | Destroyed by G-47 Trooper with Particle Gun Last Messages --------------- Acquired Lgt. Nuclear Core. Acquired Visual Processing Unit. Acquired 18 matter. Processing Tank disabled. EM Pulse Gun destroyed. Lgt. Nuclear Core destroyed. Critical hit (Burn: +37). Lgt. Assault Rifle destroyed. Slammed into G-47 Trooper. Visual Processing Unit broken. Destabilizing: Short circuit. K-01 Serf cleans the Matter Pump. Acquired Com. Wheel. EXIT=FOUND Triggered Alarm Trap. An alarm sounds. ALERT: Alarm triggered, dispatching investigation squad. Com. Wheel destroyed. Slammed into G-47 Trooper. Map ----- +----------------------------------------------------+ | ###???????# """ ### ##????????????? | | ##+###?# + +????????????? | | ^ #?###+####### ##????????????? | | ? #???# #?????# #?????????????? | | ??? #???# #?????# #?????????????? | | ????# #???# #?????# #?????????????? | | ???## %=#####+###???# #?#???????????? | | ???## [+% ==#???# ? ???????????? | | ???## # #???#### ???????????? | | ##### ! # / #??????# ???????????? | | " # #########??????# #??????????? | | " #= #????????????### ###????????? | | " +% ############## #????????? | | # ?????????? | | # " [?????????? | | ##### """ """ ?????????? | | """ """ #?# ?????????? | | """ """ #??# ########??? | | #??# # """ #??? | | ##### #??# # """ #??? | | ??####/########### #??# + """ #??? | | ??# #######+#### # #??? | | ??# """ ## # # #??? | | ??# """" ## # # #??? | | ??# """"" ## # g ########??? | | ??# ## # g@#?????????? | | ??# ## """ """ #g g#?????????? | | ??# ## """ """ ; g #?????????? | | ??# "Y" ## """ """ # #?????????? | | ??# """ ## # #?????????? | | ??##################### #?????????? | | ?????????????????????? ????????? | | ??????????????????????